fUSD/lending_fUSD_20250906
["ID","MTS","AMOUNT","RATE_DAILY","PERIOD"]
[383816850,1757128242999,-400.0,0.00069999,120]
[383816851,1757128243009,-400.0,0.00069999,120]
[383816852,1757128243019,-400.0,0.00069999,120]
[383816853,1757128243028,-400.0,0.00069999,120]
[383816854,1757128243037,-907.05,0.00069999,120]
[383816855,1757128243047,-907.05,0.00069999,120]
[383816856,1757128243057,-907.05,0.00069999,120]
[383816857,1757128243067,-907.05,0.00069999,120]
[383816858,1757128243076,-212.22601901,0.00069999,120]
[383816859,1757128243086,-400.0,0.00069999,120]
[383816860,1757128243095,-400.0,0.00069999,120]
[383816862,1757128243104,-400.0,0.00069999,120]
[383816863,1757128243114,-400.0,0.00069999,120]
[383816865,1757128243124,-154.0,0.0007,120]
[383816866,1757128243133,-154.0,0.0007,120]
[383816867,1757128243142,-237.02311149,0.0007,120]
[383816868,1757128243152,-226.52,0.0007,120]
[383816869,1757128243162,-656.01675335,0.0007,120]
[383816870,1757128243171,-166.0,0.0007,120]
[383816871,1757128243181,-155.0,0.0007,120]
[383816872,1757128243191,-166.27730878,0.0007,120]
[383816873,1757128243201,-157.7458438,0.0007,120]
[383816874,1757128243210,-1224.0,0.0007,120]
[383816875,1757128243220,-1224.0,0.0007,120]
[383816876,1757128243230,-1224.0,0.0007,120]
[383816877,1757128243240,-1224.0,0.0007,120]
[383816878,1757128243250,-1224.0,0.0007,120]
[383816879,1757128243259,-154.0,0.0007,120]
[383816880,1757128243269,-152.0,0.0007,120]
[383816881,1757128243279,-1331.14773832,0.0007,120]
[383816882,1757128243289,-271.309237,0.0007,120]
[383816883,1757128243298,-200.0,0.0007,120]
[383816884,1757128243307,-202712.034084,0.0007,15]
[383816885,1757128243330,-2630.06302167,0.0007,15]
[383816886,1757128243851,-46247.58775019,0.0007,15]
[383816887,1757128244263,-244.11900405,0.00063133,120]
[383816888,1757128244277,-271.06828083,0.00064,120]
[383816889,1757128244287,-400.0,0.00065753,120]
[383816890,1757128244296,-75.52967072,0.00067912,120]
[383816891,1757128244454,-75.88160754,0.00067912,120]
[383816892,1757128244478,-400.0,0.00068999,120]
[383816893,1757128244503,-254.29972536,0.00068999,120]
[383816894,1757128245023,-400.0,0.00065753,120]
[383816895,1757128245033,-151.41127826,0.00068384,120]
[383816896,1757128245043,-145.70027464,0.00068999,120]
[383816897,1757128245052,-401.95470125,0.00068999,120]
[383816898,1757128245062,-400.0,0.00069897,120]
[383816899,1757128245072,-400.0,0.00069897,120]
[383816900,1757128245083,-400.0,0.00069999,120]
[383816901,1757128245092,-400.0,0.00069999,120]
[383816902,1757128245102,-658423.831768,0.0007,15]
[383816903,1757128245111,-584.41508084,0.0007,120]
[383816904,1757128245121,-2000.0,0.0007,120]
[383816905,1757128245131,-3000.0,0.000701,120]
[383816906,1757128245141,-198.17,0.000701,60]
[383816907,1757128245150,-250.91751978,0.00070136,120]
[383816909,1757128245159,-150.0,0.00070136,120]
[383816910,1757128245169,-252.64164565,0.00070136,120]
[383816911,1757128245178,-150.0,0.00070136,120]
[383816912,1757128245187,-150.0,0.00070136,120]
[383816913,1757128245197,-42130.86370573,0.0007015,2]
[383816914,1757128245206,-3000.0,0.000702,120]
[383816915,1757128245216,-161.76,0.000702,60]
[383816916,1757128245226,-668.59488249,0.00070294,120]
[383816917,1757128245236,-3000.0,0.000703,120]
[383816918,1757128245246,-1265.31678,0.000703,120]
[383816919,1757128245255,-500.0,0.00070315,120]
[383816921,1757128245265,-3000.0,0.000704,120]
[383816923,1757128245275,-171.18162449,0.0007041,120]
[383816924,1757128245285,-254.58501581,0.0007041,120]
[383816925,1757128245295,-150.0,0.0007041,120]
[383816926,1757128245305,-500.0,0.0007041,120]
[383816927,1757128245314,-3000.0,0.000705,120]
[383816928,1757128245323,-668.5948825,0.00070579,120]
[383816929,1757128245333,-3000.0,0.000706,120]
[383816930,1757128245342,-251.96654232,0.00070684,120]
[383816931,1757128245351,-500.0,0.00070684,120]
[383816932,1757128245364,-3000.0,0.000707,120]
[383816933,1757128245373,-3000.0,0.000708,120]
[383816934,1757128245383,-3000.0,0.000709,120]
[383816935,1757128245392,-500.0,0.00070958,120]
[383816936,1757128245403,-10000.0,0.00071,120]
[383816937,1757128245414,-2000.0,0.00071,120]
[383816938,1757128245425,-12459.9353664,0.00071,30]
[383816939,1757128245434,-249.19870733,0.00071,30]
[383816940,1757128245444,-3000.0,0.000711,120]
[383816941,1757128245454,-3000.0,0.000712,120]
[383816942,1757128245464,-168.0,0.00071228,2]
[383816943,1757128245474,-500.0,0.00071232,120]
[383816944,1757128245483,-3000.0,0.000713,120]
[383816945,1757128245492,-1265.31678,0.000713,120]
[383816946,1757128245502,-170.0,0.00071315,2]
[383816947,1757128245511,-3000.0,0.000714,120]
[383816948,1757128245521,-3000.0,0.000715,120]
[383816949,1757128245530,-972.0,0.000715,120]
[383816950,1757128245540,-150.0,0.000715,2]
[383816951,1757128245550,-250.0,0.000715,120]
[383816952,1757128245559,-500.0,0.00071506,120]
[383816953,1757128245573,-687.0,0.00071549,2]
[383816954,1757128245583,-3000.0,0.000716,120]
[383816955,1757128245593,-3000.0,0.000717,120]
[383816956,1757128245603,-500.0,0.000717,120]
[383816957,1757128245613,-500.0,0.000717,120]
[383816958,1757128245623,-500.0,0.000717,120]
[383816959,1757128245633,-500.0,0.000717,120]
[383816960,1757128245644,-500.0,0.000717,120]
[383816961,1757128245653,-500.0,0.000717,120]
[383816962,1757128245663,-500.0,0.000717,120]
[383816963,1757128245673,-500.0,0.000717,120]
[383816964,1757128245682,-466.91595276,0.000717,120]
[383816965,1757128245693,-500.0,0.000717,120]
[383816966,1757128245702,-500.0,0.000717,120]
[383816967,1757128245712,-500.0,0.000717,120]
[383816968,1757128245722,-150.0,0.000717,2]
[383816969,1757128245732,-152.40679264,0.000717,120]
[383816970,1757128245742,-156.62978029,0.000717,89]
[383816971,1757128245752,-150.0,0.000717,120]
[383816972,1757128245765,-150.0,0.000717,120]
[383816973,1757128245775,-207.00617216,0.000717,120]
[383816974,1757128245784,-151.77369194,0.000717,120]
[383816975,1757128245794,-500.0,0.000717,120]
[383816976,1757128245804,-500.0,0.000717,120]
[383816977,1757128245814,-500.0,0.000717,120]
[383816978,1757128245827,-500.0,0.000717,120]
[383816979,1757128245838,-500.0,0.000717,120]
[383816980,1757128245848,-500.0,0.000717,120]
[383816981,1757128245858,-500.0,0.000717,120]
[383816982,1757128245870,-500.0,0.000717,120]
[383816983,1757128245880,-500.0,0.000717,120]
[383816984,1757128245889,-155.33273824,0.000717,120]
[383816985,1757128245899,-246.6404804,0.000717,120]
[383816986,1757128245909,-152.23670191,0.000717,120]
[383816987,1757128245918,-500.0,0.000717,120]
[383816988,1757128245928,-500.0,0.000717,120]
[383816989,1757128245938,-500.0,0.000717,120]
[383816990,1757128245947,-500.0,0.000717,120]
[383816991,1757128245957,-500.0,0.000717,120]
[383816992,1757128245966,-500.0,0.000717,120]
[383816993,1757128245975,-500.0,0.000717,120]
[383816994,1757128245985,-500.0,0.000717,120]
[383816995,1757128245994,-500.0,0.000717,120]
[383816996,1757128246003,-500.0,0.000717,120]
[383816997,1757128246012,-629.45643327,0.000717,120]
[383816998,1757128246022,-500.0,0.000717,120]
[383816999,1757128246032,-500.0,0.000717,120]
[383817000,1757128246042,-500.0,0.000717,120]
[383817001,1757128246051,-500.0,0.000717,120]
[383817002,1757128246060,-446.06635238,0.000717,120]
[383817003,1757128246070,-170.0,0.00071753,2]
[383817004,1757128246079,-248.83606105,0.0007178,120]
[383817005,1757128246088,-3000.0,0.000718,120]
[383817006,1757128246098,-3000.0,0.000719,120]
[383817007,1757128246108,-10000.0,0.00072,120]
[383817008,1757128246118,-246.67435756,0.00072,30]
[383817009,1757128246127,-150.0,0.0007208,2]
[383817010,1757128246137,-1265.31678,0.000723,120]
[383817011,1757128246146,-40630.83816712,0.00072423,120]
[383817012,1757128246155,-170.0,0.00072643,7]
[383817013,1757128246165,-150.0,0.0007266,2]
[383817014,1757128246175,-514.85095374,0.00072708,2]
[383817015,1757128246184,-154.0,0.000729,120]
[383817016,1757128246193,-2000.0,0.00073,120]
[383817017,1757128246203,-10000.0,0.00073,120]
[383817018,1757128246212,-414.45167186,0.00073,120]
[383817019,1757128246221,-150.0,0.00073063,120]
[383817020,1757128246230,-500.0,0.0007307,120]
[383817021,1757128246239,-150.0,0.0007324,2]
[383817022,1757128246249,-161.76,0.000733,60]
[383817023,1757128246261,-1265.31678,0.000733,120]
[383817024,1757128246271,-168.0,0.00073502,2]
[383817025,1757128246282,-226.21,0.00073534,30]
[383817026,1757128246291,-425.72,0.00073534,30]
[383817027,1757128246300,-382.0,0.00073547,2]
[383817028,1757128246310,-535.474,0.00073664,120]
[383817029,1757128246319,-382.0,0.00073712,2]
[383817030,1757128246328,-400.0,0.00073799,120]
[383817031,1757128246337,-921.8,0.00073799,120]
[383817032,1757128246347,-193.99614267,0.00073799,120]
[383817033,1757128246355,-400.0,0.00073799,120]
[383817034,1757128246364,-400.0,0.00073799,120]
[383817035,1757128246374,-400.0,0.00073799,120]
[383817036,1757128246383,-153.82470583,0.00073799,120]
[383817037,1757128246393,-400.0,0.00073799,120]
[383817038,1757128246403,-400.0,0.00073799,120]
[383817039,1757128246412,-907.05,0.00073799,120]
[383817040,1757128246421,-6289.97,0.000738,120]
[383817041,1757128246431,-1039.95,0.000738,120]
[383817042,1757128246441,-150.0,0.0007383,2]
[383817043,1757128246453,-170.0,0.00073855,2]
[383817044,1757128246464,-500.0,0.00073882,120]
[383817045,1757128246474,-172.02,0.00073973,120]
[383817046,1757128246483,-514.04,0.00073999,120]
[383817047,1757128246493,-4142.44,0.00073999,120]
[383817048,1757128246503,-7116.79,0.00073999,120]
[383817049,1757128246512,-400.0,0.00073999,120]
[383817050,1757128246522,-21237.60781705,0.00074,14]
[383817051,1757128246531,-10000.0,0.00074,120]
[383817052,1757128246541,-347.9424322,0.00074,120]
[383817053,1757128246551,-3009.3,0.00074,120]
[383817054,1757128246561,-7383.465039,0.00074231,120]
[383817055,1757128246575,-1265.31678,0.000743,120]
[383817056,1757128246584,-382.0,0.00074318,7]
[383817057,1757128246594,-150.0,0.0007441,2]
[383817058,1757128246604,-150.0,0.00074534,30]
[383817059,1757128246613,-164.29,0.00074673,120]
[383817060,1757128246623,-382.0,0.00074685,2]
[383817061,1757128246632,-352.88,0.00074734,30]
[383817062,1757128246642,-305.77,0.00074734,30]
[383817063,1757128246652,-153.41,0.00074734,30]
[383817064,1757128246663,-431.25,0.00074734,30]
[383817065,1757128246673,-332.56,0.00074734,30]
[383817066,1757128246683,-150.0,0.00074734,30]
[383817067,1757128246693,-400.0,0.00074761,120]
[383817068,1757128246703,-400.0,0.00074761,120]
[383817069,1757128246712,-14431.29598524,0.00074761,20]
[383817070,1757128246758,-202.28,0.0006645,120]
[383817091,1757128247933,-400.0,0.00065753,120]
[383817092,1757128247957,-68.78828083,0.0006645,120]
[383817093,1757128247980,-31.21171917,0.00069986,120]
[383817094,1757128250656,-262.02356599,0.000488,120]
[383817095,1757128253366,-203.25048679,0.000488,120]
[383817096,1757128256645,-181.60187249,0.000488,120]
[383817100,1757128258310,-266.32702604,0.000488,120]
[383817102,1757128260947,-194.99900332,0.000488,120]
[383817103,1757128262450,-396.5131671,0.000488,120]
[383817104,1757128264866,-517.90407499,0.000488,120]
[383817105,1757128266431,-238.41717944,0.000488,120]
[383817106,1757128270296,-25.25187208,0.000488,120]
[383817107,1757128270320,-322.91343795,0.00059,120]
[383817108,1757128271970,-174.53181411,0.00059,120]
[383817109,1757128275942,-2.55474794,0.00059,120]
[383817110,1757128275969,-274.48460193,0.0006,120]
[383817111,1757128278741,-191.2290128,0.0006,120]
[383817112,1757128282081,-200.37095561,0.0006,120]
[383817113,1757128284296,-49.91542966,0.0006,120]
[383817114,1757128284322,-265.97292326,0.00063133,120]
[383817115,1757128293880,-52.58050573,0.00063133,120]
[383817116,1757128293903,-176.48507113,0.00063133,7]
[383817117,1757128293928,-45.99067142,0.00063133,31]
[383817118,1757128298506,-187.71707478,0.00063133,31]
[383817119,1757128303231,-82.27929742,0.00063133,31]
[383817120,1757128303262,-203.74714445,0.00063133,120]
[383817121,1757128303374,556.99304275,0.000459,2]
[383817122,1757128321078,10000.0,0.00024,2]
[383817123,1757128322628,250.0,0.00042008,120]
[383817124,1757128322790,250.0,0.00043393,120]
[383817125,1757128326251,10000.0,0.00024,2]
[383817126,1757128326663,195.0,0.00042008,120]
[383817127,1757128332920,1801.22793391,0.00024,2]
[383817128,1757128332951,8198.77206609,0.00024,2]
[383817129,1757128339605,10000.0,0.00024,2]
[383817130,1757128345841,10000.0,0.00024,2]
[383817131,1757128389207,-500.0,0.00031786,7]
[383817132,1757128389231,-500.0,0.00033458,7]
[383817133,1757128389256,-164.636229,0.00035616,10]
[383817134,1757128389279,-259.66335185,0.00037,2]
[383817136,1757128554480,-410.98099353,0.0002488,7]
[383817137,1757128556816,-110.59539409,0.0002488,7]
[383817157,1757129109014,20972.49823471,0.0002,2]
[383817158,1757129109042,50000.0,0.0002,2]
[383817159,1757129109072,1542.24361041,0.0002,2]
[383817160,1757129144116,-151.53,0.0002872,2]
[383817161,1757129144146,-151.53,0.00030515,2]
[383817162,1757129144172,-151.53,0.00032309,2]
[383817163,1757129144195,-175.05669469,0.00033308,2]
[383817164,1757129144217,-304.48272318,0.000334,5]
[383817165,1757129144239,-500.0,0.00033568,7]
[383817166,1757129144263,-151.53,0.00034104,2]
[383817167,1757129144284,-500.0,0.000354,7]
[383817168,1757129144308,-151.53,0.00035899,2]
[383817169,1757129144330,-21.08383053,0.00037,2]
[383817170,1757129144353,-296.07027619,0.00037,7]
[383817171,1757129144374,-176.88013964,0.00037175,2]
[383817172,1757129144397,-151.53,0.00037694,2]
[383817173,1757129144421,-151.53,0.00039489,2]
[383817174,1757129144442,-500.0,0.00040724,30]
[383817175,1757129144465,-151.53,0.00041284,2]
[383817176,1757129144485,-500.20165336,0.00041628,30]
[383817177,1757129144505,-500.0,0.0004248,30]
[383817178,1757129144531,-151.53,0.00043079,2]
[383817179,1757129144552,-550.0,0.00043306,5]
[383817180,1757129144573,-1414.0,0.00043306,5]
[383817181,1757129144596,-500.0,0.00043307,31]
[383817182,1757129144619,-500.0,0.00043307,31]
[383817183,1757129144641,-508.92861731,0.00043307,31]
[383817184,1757129144662,-201.54336859,0.00043308,2]
[383817185,1757129144682,-247.59530599,0.000438,30]
[383817186,1757129144703,-151.53,0.00044874,2]
[383817187,1757129144724,-394.0,0.00044998,5]
[383817188,1757129144745,-200.0,0.00045,20]
[383817189,1757129144765,-500.0,0.00045638,30]
[383817190,1757129144788,-151.53,0.00046669,2]
[383817191,1757129144811,-200.0,0.00048,30]
[383817192,1757129144834,-151.53,0.00048464,2]
[383817193,1757129144855,-200.0,0.00048598,2]
[383817194,1757129144876,-365.33,0.00048598,2]
[383817195,1757129144897,-4185.92131583,0.00048598,2]
[383817199,1757129232092,-2499.35359924,0.00024,5]
[383817200,1757129237109,-353.56312301,0.00024,5]
[383817201,1757129241082,-2147.08816135,0.00024,5]
[383817202,1757129241103,-500.0,0.00031888,7]
[383817203,1757129241123,-500.0,0.0003782,7]
[383817204,1757129241147,-569.853887,0.0003803,2]
[383817205,1757129241344,-850.0,0.00038222,2]
[383817206,1757129241366,-500.0,0.00038222,15]
[383817207,1757129241387,-162.87906347,0.00038222,15]
[383817208,1757129241409,-248.78930456,0.00038222,15]
[383817209,1757129241433,-167.65873526,0.00038222,15]
[383817210,1757129241455,-174.15251319,0.00038222,15]
[383817211,1757129241475,-500.0,0.00041832,30]
[383817212,1757129241496,-223.17641742,0.0004191,2]
[383817213,1757129241516,-354.45125009,0.00042,120]
[383817214,1757129241536,-1347.3945809,0.0004201,2]
[383817215,1757129241557,-214.0,0.00043,7]
[383817216,1757129241578,-401.5417966,0.00043215,2]
[383817217,1757129241598,-500.0,0.00045075,30]
[383817218,1757129241619,-401.5417966,0.00048192,2]
[383817219,1757129241643,-3037.83868417,0.00048598,2]
[383817220,1757129241663,-751.15,0.00048598,120]
[383817221,1757129241685,-610.93,0.00049027,30]
[383817222,1757129241706,-278.944,0.00049062,85]
[383817223,1757129241727,-602.44,0.00049064,30]
[383817224,1757129241747,-598.15,0.00049131,30]
[383817225,1757129241766,-196.37293873,0.00049205,30]
[383817226,1757129241787,-600.37,0.00049254,30]
[383817227,1757129241807,-595.95,0.00049482,30]
[383817228,1757129241827,-589.81,0.00049905,30]
[383817229,1757129241847,-200.0,0.0005,30]
[383817230,1757129241870,-151.53,0.00050259,2]
[383817231,1757129241895,-365.33,0.00051027,2]
[383817232,1757129241915,-500.0,0.00051467,60]
[383817233,1757129241938,-151.53,0.00052054,2]
[383817234,1757129241959,-401.5417966,0.00053168,2]
[383817235,1757129241982,-365.33,0.00053457,2]
[383817236,1757129242005,-151.53,0.00053849,2]
[383817237,1757129242026,-500.0,0.00054401,2]
[383817238,1757129242046,-223.17641741,0.00055405,120]
[383817239,1757129242070,-151.53,0.00055644,2]
[383817240,1757129242090,-500.0,0.00055753,2]
[383817241,1757129242111,-365.33,0.00055887,2]
[383817242,1757129242131,-1476.23,0.0005597,30]
[383817243,1757129242157,-1500.0,0.00056099,120]
[383817244,1757129242178,-164.29,0.00056141,120]
[383817245,1757129242200,-200.0,0.00056226,2]
[383817246,1757129242222,-1727.38588763,0.00056274,2]
[383817247,1757129277467,48207.75638959,0.0002,2]
[383817248,1757129277492,11133.45974574,0.0002,2]
[383817249,1757129277516,50000.0,0.0002,2]
[383817250,1757129277543,28608.94439778,0.0002,2]
[383817252,1757129318785,514.0,0.0001997,2]
[383817253,1757129352083,-464.01534443,0.00038221,15]
[383817254,1757129352105,-1254.33202651,0.00039,120]
[383817255,1757129354104,-2560.00807493,0.00039,120]
[383817256,1757129355078,-4279.08517173,0.00039,120]
[383817257,1757129355098,-2122.25420515,0.0004,120]
[383817258,1757129355118,-1698.7146035,0.00042,2]
[383817259,1757129355145,-3600.0,0.000422,2]
[383817260,1757129355170,-982.65739419,0.0004282,2]
[383817261,1757129355190,-5072.31537027,0.00043,120]
[383817262,1757129356084,-3862.59748,0.00043,120]
[383817267,1757129431361,-262.7479998,0.00038222,5]
[383817268,1757129431416,-856.80289621,0.00038222,5]
[383817269,1757129431426,-3574.19710377,0.00038222,2]
[383817270,1757129431473,-40309.97713023,0.00038222,2]
[383817271,1757129431486,-19223.91711439,0.00038222,2]
[383817272,1757129431683,-24814.24483229,0.00038222,2]
[383817299,1757129437305,-4400.17224343,0.00038222,2]
[383817300,1757129437315,-156.70110994,0.00038222,120]
[383817301,1757129437325,-168.49345143,0.00038222,120]
[383817302,1757129437334,-174.12754022,0.00038222,30]
[383817303,1757129437344,-164.69371396,0.00038222,75]
[383817304,1757129437354,-545.37220108,0.00038222,30]
[383817305,1757129437364,-4474.32313225,0.00038222,30]
[383817306,1757129437377,-676.71734691,0.00038222,120]
[383817307,1757129437387,-13207.96679688,0.00043,120]
[383817308,1757129437396,-14745.7255355,0.00044921,2]
[383817309,1757129437407,-223.51517299,0.00046,2]
[383817310,1757129437419,-14745.7255355,0.00049977,2]
[383817311,1757129437429,-7282.71154685,0.00055032,2]
[383817312,1757129437441,-7463.01398865,0.00055032,2]
[383817313,1757129437451,-160.0,0.00055508,7]
[383817314,1757129437461,-13288.11411237,0.00056274,2]
[383817315,1757129437471,-250.0,0.00056346,120]
[383817316,1757129437482,-150.0,0.00057334,2]
[383817317,1757129437492,-151.53,0.00057439,2]
[383817318,1757129437501,-17019.17,0.00057546,7]
[383817319,1757129437511,-377.78681642,0.00057554,15]
[383817320,1757129437523,-288.21318358,0.00057554,15]
[383817321,1757129437533,-401.5417966,0.00058145,2]
[383817322,1757129437542,-865.68,0.0005821,2]
[383817323,1757129437551,-365.33,0.00058317,2]
[383817324,1757129437561,-34547.00314448,0.000589,120]
[383817325,1757129437570,-354.0,0.00059,120]
[383817326,1757129437580,-500.0,0.00059171,120]
[383817327,1757129437589,-2999.999999,0.000595,120]
[383817328,1757129437598,-10523.34,0.00059787,2]
[383817329,1757129437607,-1169.161265,0.00059999,120]
[383817330,1757129437617,-200.0,0.0006,30]
[383817331,1757129437626,-1500.0,0.00060055,16]
[383817332,1757129437636,-14745.7255355,0.00060088,2]
[383817333,1757129437645,-10630.32,0.00060247,2]
[383817334,1757129437655,-601.77,0.00061054,30]
[383817335,1757129437664,-460.62,0.00061475,2]
[383817336,1757129437673,-203.64666808,0.00062,120]
[383817337,1757129437683,-1231.0,0.00062089,2]
[383817338,1757129437692,-160.0,0.000621,120]
[383817339,1757129437702,-1451.86838184,0.00062917,120]
[383817340,1757129437711,-500.0,0.00063076,120]
[383817341,1757129437721,-151.0,0.00063132,120]
[383817342,1757129437730,-200.0,0.00063132,120]
[383817343,1757129437740,-156.587,0.00063132,120]
[383817344,1757129437749,-207.4,0.00063132,120]
[383817345,1757129437759,-162.380719,0.00063132,120]
[383817346,1757129437768,-168.3888056,0.00063132,120]
[383817347,1757129437777,-215.0738,0.00063132,120]
[383817348,1757129437787,-174.61919141,0.00063132,120]
[383817349,1757129437796,-223.0315306,0.00063132,120]
[383817350,1757129437805,-181.08010149,0.00063132,120]
[383817351,1757129437815,-231.28369723,0.00063132,120]
[383817352,1757129437824,-239.84119403,0.00063132,120]
[383817353,1757129437836,-248.71531821,0.00063132,120]
[383817354,1757129437846,-257.91778498,0.00063132,120]
[383817355,1757129437856,-267.46074303,0.00063132,120]
[383817356,1757129437866,-277.35679052,0.00063132,120]
[383817357,1757129437876,-287.61899177,0.00063132,120]
[383817358,1757129437886,-298.26089446,0.00063132,120]
[383817359,1757129437895,-309.29654756,0.00063132,120]
[383817360,1757129437906,-320.74051982,0.00063132,120]
[383817361,1757129437916,-332.60791905,0.00063132,120]
[383817362,1757129437926,-344.91441206,0.00063132,120]
[383817363,1757129437936,-357.6762453,0.00063132,120]
[383817364,1757129437946,-6888.0,0.00063132,120]
[383817365,1757129437955,-370.91026638,0.00063132,120]
[383817366,1757129437965,-1766.54976853,0.00063132,120]
[383817367,1757129437975,-384.63394623,0.00063132,120]
[383817368,1757129437986,-398.86540225,0.00063132,120]
[383817369,1757129437997,-500.0,0.00063211,15]
[383817370,1757129438006,-278.944,0.00064297,120]
[383817371,1757129438016,-500.0,0.00065031,120]
[383817372,1757129438027,-568.30555072,0.00065613,2]
[383817373,1757129438037,-151.0,0.00065613,2]
[383817374,1757129438048,-500.0,0.00065613,2]
[383817375,1757129438058,-151.0,0.00065613,2]
[383817376,1757129438069,-500.0,0.00065613,2]
[383817377,1757129438080,-151.0,0.00065613,2]
[383817378,1757129438090,-151.0,0.00065613,2]
[383817379,1757129438101,-500.0,0.00065613,2]
[383817380,1757129438111,-151.0,0.00065613,2]
[383817381,1757129438121,-500.0,0.00065613,2]
[383817382,1757129438132,-151.0,0.00065613,2]
[383817383,1757129438142,-500.0,0.00065613,2]
[383817384,1757129438152,-151.0,0.00065613,2]
[383817385,1757129438164,-500.0,0.00065613,2]
[383817386,1757129438174,-151.0,0.00065613,2]
[383817387,1757129438190,-500.0,0.00065613,2]
[383817388,1757129438201,-151.0,0.00065613,2]
[383817389,1757129438211,-500.0,0.00065613,2]
[383817390,1757129438221,-151.0,0.00065613,2]
[383817391,1757129438231,-500.0,0.00065613,2]
[383817392,1757129438241,-1453.54066605,0.00065613,2]
[383817393,1757129438252,-151.0,0.00065613,2]
[383817394,1757129438262,-500.0,0.00065613,2]
[383817395,1757129438272,-233.35958814,0.00065613,2]
[383817396,1757129438283,-500.0,0.00065613,2]
[383817397,1757129438295,-500.0,0.00065613,2]
[383817398,1757129438305,-500.0,0.00065613,2]
[383817399,1757129438315,-16599.9146,0.00065653,2]
[383817400,1757129438326,-401.76402095,0.00065753,120]
[383817401,1757129438336,-395.19941012,0.00065753,120]
[383817402,1757129438346,-400.0,0.00065753,120]
[383817403,1757129438356,-409.94741161,0.00065753,120]
[383817404,1757129438365,-401.33778397,0.00065753,120]
[383817405,1757129438376,-400.0,0.00065753,120]
[383817406,1757129438385,-400.0,0.00065753,120]
[383817407,1757129438394,-400.0,0.00065753,120]
[383817408,1757129438405,-400.0,0.00065753,120]
[383817409,1757129438415,-400.0,0.00065753,120]
[383817410,1757129438424,-475.54,0.00065753,120]
[383817411,1757129438434,-435.61,0.00065753,120]
[383817412,1757129438444,-435.3,0.00065753,120]
[383817413,1757129438453,-549.69,0.00065753,120]
[383817414,1757129438463,-400.0,0.00065753,120]
[383817415,1757129438472,-406.06,0.00065753,120]
[383817416,1757129438481,-400.0,0.00065753,120]
[383817417,1757129438490,-400.0,0.00065753,120]
[383817418,1757129438499,-400.0,0.00065753,120]
[383817419,1757129438508,-400.0,0.00065753,120]
[383817420,1757129438518,-400.0,0.00065753,120]
[383817421,1757129438527,-400.0,0.00065753,120]
[383817422,1757129438536,-500.0,0.00065753,120]
[383817423,1757129438545,-437.63,0.00065753,120]
[383817424,1757129438555,-400.0,0.00065753,120]
[383817425,1757129438565,-426.93692998,0.00065753,120]
[383817426,1757129438574,-400.0,0.00065753,120]
[383817427,1757129438583,-400.0,0.00065753,120]
[383817428,1757129438593,-400.0,0.00065753,120]
[383817429,1757129438603,-410.98099353,0.00065753,120]
[383817430,1757129438612,-400.0,0.00065753,120]
[383817431,1757129438622,-400.0,0.00065753,120]
[383817432,1757129438631,-160.00088174,0.00065753,120]